fUSD/lending_fUSD_20260605
["ID","MTS","AMOUNT","RATE_DAILY","PERIOD"]
[424150494,1780612260000,-557.281833,0.00035962,30]
[424150497,1780612260000,-749.673451,0.00035962,30]
[424150488,1780612260000,-834.811559,0.00035962,7]
[424150496,1780612260000,-749.673451,0.00035962,30]
[424150503,1780612260000,-154.79996153,0.00035982,30]
[424150510,1780612260000,-312.13772435,0.00036072,2]
[424150515,1780612260000,-200.0,0.00036072,2]
[424150516,1780612260000,-200.0,0.00036072,2]
[424150511,1780612260000,-194.72792766,0.00036072,2]
[424150512,1780612260000,-829.12830338,0.00036072,2]
[424150513,1780612260000,-1592.87721992,0.00036072,2]
[424150504,1780612260000,-1179.31,0.00036,30]
[424150509,1780612260000,-151.0,0.0003603,30]
[424150514,1780612260000,-773.24136889,0.00036072,2]
[424150508,1780612260000,-5614.8027,0.0003603,2]
[424150505,1780612260000,-585.61905373,0.00036,2]
[424150506,1780612260000,-3454.22575266,0.00036,5]
[424150500,1780612260000,-259.35,0.00035972,5]
[424150479,1780612260000,-187.729825,0.00035962,30]
[424150457,1780612260000,-151.0,0.0003592,30]
[424150481,1780612260000,-1541.829306,0.00035962,28]
[424150454,1780612260000,-151.0,0.0003592,30]
[424150458,1780612260000,-308.147385,0.0003592,30]
[424150453,1780612260000,-151.0,0.0003592,30]
[424150461,1780612260000,-2855.65,0.00035941,120]
[424150460,1780612260000,-308.147385,0.0003592,30]
[424150462,1780612260000,-407.0,0.00035951,2]
[424150463,1780612260000,-408.05579473,0.00035951,2]
[424150456,1780612260000,-308.147385,0.0003592,30]
[424150487,1780612260000,-834.811559,0.00035962,7]
[424150464,1780612260000,-150.0,0.00035951,2]
[424150465,1780612260000,-150.33205177,0.00035951,2]
[424150468,1780612260000,-400.0,0.00035951,2]
[424150466,1780612260000,-500.0,0.00035951,2]
[424150467,1780612260000,-501.07670411,0.00035951,2]
[424150455,1780612260000,-308.147385,0.0003592,30]
[424150472,1780612260000,-151.0,0.00035962,30]
[424150469,1780612260000,-400.0,0.00035951,2]
[424150489,1780612260000,-834.811559,0.00035962,7]
[424150485,1780612260000,-151.0,0.00035962,30]
[424150484,1780612260000,-1541.829303,0.00035962,28]
[424150483,1780612260000,-1541.829306,0.00035962,28]
[424150478,1780612260000,-187.729829,0.00035962,30]
[424150486,1780612260000,-151.0,0.00035962,30]
[424150476,1780612260000,-187.729829,0.00035962,30]
[424150473,1780612260000,-151.0,0.00035962,30]
[424150471,1780612260000,-151.0,0.00035962,30]
[424150475,1780612260000,-151.0,0.00035962,30]
[424150470,1780612260000,-835323.5838,0.00035962,30]
[424150477,1780612260000,-187.729829,0.00035962,30]
[424150474,1780612260000,-151.0,0.00035962,30]
[424150568,1780612261000,-3905.5571,0.00036654,2]
[424150561,1780612261000,-201.93286098,0.0003662,2]
[424150565,1780612261000,-200.0,0.0003662,2]
[424150556,1780612261000,-2557.6,0.00036535,10]
[424150558,1780612261000,-1190.55,0.00036549,120]
[424150554,1780612261000,-3905.5564,0.00036529,2]
[424150555,1780612261000,-5614.8027,0.00036529,2]
[424150550,1780612261000,-2532.84,0.00036471,10]
[424150547,1780612261000,-500.0,0.00036456,60]
[424150553,1780612261000,-889.17,0.00036516,7]
[424150548,1780612261000,-500.0,0.00036456,60]
[424150557,1780612261000,-2529.27,0.00036541,10]
[424150560,1780612261000,-323.68682015,0.0003662,2]
[424150579,1780612261000,-194.58,0.0003678,120]
[424150566,1780612261000,-200.0,0.0003662,2]
[424150567,1780612261000,-500.0,0.0003662,2]
[424150564,1780612261000,-278.07310317,0.0003662,2]
[424150559,1780612261000,-1592.0,0.00036573,11]
[424150562,1780612261000,-859.8060506,0.0003662,2]
[424150570,1780612261000,-803.5281,0.00036654,2]
[424150569,1780612261000,-5614.8038,0.00036654,2]
[424150573,1780612261000,-624.0,0.00036668,3]
[424150571,1780612261000,-25000.0,0.00036655,10]
[424150572,1780612261000,-350.0,0.00036666,2]
[424150580,1780612261000,-190.16146522,0.000368,30]
[424150581,1780612261000,-2819.86622049,0.000368,30]
[424150577,1780612261000,-150.0,0.00036753,2]
[424150549,1780612261000,-900.0,0.00036456,60]
[424150563,1780612261000,-1651.81367706,0.0003662,2]
[424150551,1780612261000,-200.0,0.000365,14]
[424150538,1780612261000,-500.0,0.00036301,2]
[424150552,1780612261000,-63960.44585058,0.000365,15]
[424150578,1780612261000,-464.04,0.00036753,10]
[424150517,1780612261000,-500.0,0.00036072,2]
[424150524,1780612261000,-5614.8027,0.00036155,2]
[424150522,1780612261000,-3745.4,0.00036153,30]
[424150525,1780612261000,-5217.0,0.00036164,2]
[424150521,1780612261000,-1600.0709815,0.00036141,2]
[424150518,1780612261000,-1357.0,0.00036088,2]
[424150523,1780612261000,-3905.5564,0.00036155,2]
[424150520,1780612261000,-155.361014,0.00036101,10]
[424150519,1780612261000,-2001.05,0.00036096,120]
[424150526,1780612261000,-150.0,0.00036165,7]
[424150528,1780612261000,-350.0,0.00036192,40]
[424150527,1780612261000,-150.0,0.00036165,2]
[424150546,1780612261000,-350.0,0.00036452,2]
[424150534,1780612261000,-1688.67,0.00036263,7]
[424150535,1780612261000,-2557.6,0.00036274,10]
[424150537,1780612261000,-5614.8027,0.0003628,2]
[424150536,1780612261000,-3905.5564,0.0003628,2]
[424150540,1780612261000,-194.58,0.0003634,114]
[424150541,1780612261000,-1248.0,0.00036375,2]
[424150532,1780612261000,-2000.3714,0.00036195,2]
[424150530,1780612261000,-94810.91404648,0.00036195,2]
[424150531,1780612261000,-571996.0703,0.00036195,2]
[424150533,1780612261000,-220.46,0.000362,16]
[424150543,1780612261000,-52661.0,0.000364,30]
[424150542,1780612261000,-186.04151345,0.00036389,11]
[424150544,1780612261000,-3905.5564,0.00036404,2]
[424150545,1780612261000,-5614.8027,0.00036404,2]
[424150529,1780612261000,-1221.7157,0.00036195,2]
[424150574,1780612261000,-350.0,0.00036669,2]
[424150539,1780612261000,-553.09,0.00036301,7]
[424150576,1780612261000,-1592.0,0.00036727,11]
[424150617,1780612261000,-1000.0,0.00036986,120]
[424150619,1780612261000,-1339.0,0.00036987,2]
[424150614,1780612261000,-2320.0,0.00036957,11]
[424150620,1780612261000,-405.0,0.00036987,2]
[424150612,1780612261000,-164.0,0.00036956,11]
[424150611,1780612261000,-2532.84,0.00036953,10]
[424150613,1780612261000,-1592.0,0.00036957,11]
[424150621,1780612261000,-554735.329183,0.00036988,120]
[424150622,1780612261000,-151.0,0.00036988,30]
[424150633,1780612261000,-863.87368015,0.00037,10]
[424150623,1780612261000,-151.0,0.00036988,30]
[424150642,1780612261000,-500.0,0.00037051,120]
[424150626,1780612261000,-308.147385,0.00036988,30]
[424150618,1780612261000,-1341.0,0.00036987,2]
[424150628,1780612261000,-308.147385,0.00036988,30]
[424150631,1780612261000,-1095.33607236,0.00037,2]
[424150627,1780612261000,-151.0,0.00036988,30]
[424150625,1780612261000,-308.147385,0.00036988,30]
[424150632,1780612261000,-7120.78873365,0.00037,10]
[424150629,1780612261000,-151.0,0.00036988,30]
[424150630,1780612261000,-308.147385,0.00036988,30]
[424150636,1780612261000,-575.56,0.00037,14]
[424150638,1780612261000,-2000.0,0.00037,7]
[424150640,1780612261000,-525.0,0.00037039,2]
[424150637,1780612261000,-2931.35256646,0.00037,15]
[424150635,1780612261000,-276.76941491,0.00037,60]
[424150641,1780612261000,-1226.0,0.00037039,2]
[424150639,1780612261000,-1273.0,0.00037039,2]
[424150624,1780612261000,-151.0,0.00036988,30]
[424150610,1780612261000,-1688.68,0.00036948,7]
[424150634,1780612261000,-18490.55489157,0.00037,5]
[424150616,1780612261000,-1000.0,0.0003697,2]
[424150609,1780612261000,-2320.0,0.00036937,11]
[424150583,1780612261000,-2819.86622047,0.000368,30]
[424150582,1780612261000,-2819.86622047,0.000368,30]
[424150594,1780612261000,-891.1008482,0.00036872,120]
[424150593,1780612261000,-351.7175534,0.00036872,120]
[424150584,1780612261000,-245.91458161,0.000368,30]
[424150585,1780612261000,-25000.0,0.00036816,10]
[424150595,1780612261000,-500.0,0.00036872,120]
[424150592,1780612261000,-500.0,0.00036872,120]
[424150590,1780612261000,-236.4667911,0.00036872,120]
[424150587,1780612261000,-719.0682451,0.00036872,120]
[424150589,1780612261000,-967.8691091,0.00036872,120]
[424150591,1780612261000,-151.8478076,0.00036872,120]
[424150588,1780612261000,-184.6368026,0.00036872,120]
[424150575,1780612261000,-154.79996153,0.00036712,30]
[424150597,1780612261000,-924.8490196,0.00036872,120]
[424150615,1780612261000,-500.0,0.0003697,2]
[424150586,1780612261000,-355.86933294,0.00036823,14]
[424150608,1780612261000,-23162.62,0.00036927,10]
[424150605,1780612261000,-169.9953927,0.00036883,2]
[424150606,1780612261000,-304.55614525,0.000369,30]
[424150602,1780612261000,-500.0,0.00036872,120]
[424150601,1780612261000,-242.963508,0.00036872,120]
[424150604,1780612261000,-639.6614553,0.00036872,120]
[424150600,1780612261000,-500.0,0.00036872,120]
[424150596,1780612261000,-562.9797939,0.00036872,120]
[424150607,1780612261000,-500.0,0.000369,30]
[424150598,1780612261000,-162.5045091,0.00036872,120]
[424150599,1780612261000,-554.4033122,0.00036872,120]
[424150603,1780612261000,-890.499109,0.00036872,120]
[424150683,1780612262000,-1369.62890625,0.00037302,2]
[424150659,1780612262000,-500.0,0.00037168,2]
[424150669,1780612262000,-620.77798481,0.000372,120]
[424150664,1780612262000,-1000.0,0.000372,60]
[424150667,1780612262000,-620.77798481,0.000372,120]
[424150672,1780612262000,-150.0,0.00037239,2]
[424150671,1780612262000,-150.0,0.00037235,2]
[424150673,1780612262000,-150.0,0.00037239,2]
[424150675,1780612262000,-6084.6892,0.00037247,30]
[424150674,1780612262000,-150.0,0.00037239,2]
[424150679,1780612262000,-1000.0,0.00037275,60]
[424150681,1780612262000,-2429.47370705,0.00037295,7]
[424150677,1780612262000,-170.0,0.00037266,11]
[424150670,1780612262000,-194.58,0.0003721,60]
[424150678,1780612262000,-164.0,0.00037273,11]
[424150676,1780612262000,-2320.0,0.00037257,11]
[424150680,1780612262000,-900.0,0.00037278,60]
[424150695,1780612262000,-400.0,0.00037449,2]
[424150682,1780612262000,-1000.0,0.00037296,60]
[424150666,1780612262000,-620.77798481,0.000372,120]
[424150653,1780612262000,-335.66323249,0.00037168,2]
[424150668,1780612262000,-620.77798481,0.000372,120]
[424150684,1780612262000,-1369.62890625,0.00037302,2]
[424150644,1780612262000,-13263.49,0.00037093,30]
[424150645,1780612262000,-53493.60854794,0.000371,2]
[424150643,1780612262000,-1592.0,0.00037064,11]
[424150646,1780612262000,-339.41399719,0.000371,2]
[424150648,1780612262000,-1000.0,0.0003712,60]
[424150647,1780612262000,-58539.30288075,0.000371,2]
[424150649,1780612262000,-1098.0,0.00037126,11]
[424150651,1780612262000,-599.60298507,0.00037167,2]
[424150655,1780612262000,-891.61887448,0.00037168,2]
[424150654,1780612262000,-209.40437684,0.00037168,2]
[424150652,1780612262000,-747.80937859,0.00037167,2]
[424150657,1780612262000,-200.0,0.00037168,2]
[424150656,1780612262000,-1712.93078311,0.00037168,2]
[424150658,1780612262000,-200.0,0.00037168,2]
[424150662,1780612262000,-164.0,0.00037189,11]
[424150661,1780612262000,-46309.20123051,0.00037188,5]
[424150660,1780612262000,-1000.0,0.00037185,60]
[424150663,1780612262000,-227.34,0.000372,18]
[424150665,1780612262000,-620.77798483,0.000372,120]
[424150650,1780612262000,-162.380719,0.00037166,2]
[424150686,1780612262000,-160.0687629,0.00037388,2]
[424150688,1780612262000,-183.14230151,0.0003739,2]
[424150718,1780612262000,-183.1423015,0.00037588,2]
[424150712,1780612262000,-2000.0,0.0003752,91]
[424150719,1780612262000,-2000.0,0.00037589,30]
[424150715,1780612262000,-1592.0,0.00037575,11]
[424150716,1780612262000,-500.0,0.0003758,30]
[424150721,1780612262000,-2320.0,0.00037597,11]
[424150714,1780612262000,-150.0,0.00037535,2]
[424150720,1780612262000,-1592.0,0.00037592,11]
[424150717,1780612262000,-160.0687629,0.00037588,2]
[424150723,1780612262000,-1173.42607681,0.000376,120]
[424150722,1780612262000,-52661.0,0.000376,30]
[424150724,1780612262000,-1592.0,0.00037604,11]
[424150729,1780612262000,-194.58,0.0003765,78]
[424150730,1780612262000,-2320.0,0.0003767,11]
[424150725,1780612262000,-1592.0,0.00037604,11]
[424150728,1780612262000,-1000.0,0.00037634,60]
[424150731,1780612262000,-350.0,0.00037677,2]
[424150726,1780612262000,-350.0,0.00037613,46]
[424150693,1780612262000,-150.0,0.00037449,2]
[424150713,1780612262000,-205.85407487,0.00037535,7]
[424150710,1780612262000,-2000.0,0.0003752,91]
[424150727,1780612262000,-2320.0,0.00037626,11]
[424150705,1780612262000,-321.248069,0.000375,19]
[424150696,1780612262000,-1461.74,0.00037476,2]
[424150711,1780612262000,-2000.0,0.0003752,91]
[424150685,1780612262000,-322.0,0.0003735,11]
[424150694,1780612262000,-500.0,0.00037449,2]
[424150690,1780612262000,-1024.03102744,0.00037449,2]
[424150689,1780612262000,-154.79996153,0.00037443,30]
[424150691,1780612262000,-407.0,0.00037449,2]
[424150687,1780612262000,-183.1423015,0.00037388,2]
[424150698,1780612262000,-183.1423015,0.00037488,2]
[424150707,1780612262000,-2320.0,0.00037509,11]
[424150692,1780612262000,-246.41431877,0.00037449,2]
[424150709,1780612262000,-2000.0,0.0003752,91]
[424150708,1780612262000,-1592.0,0.00037509,11]
[424150700,1780612262000,-3000.00013968,0.000375,60]
[424150702,1780612262000,-5101.84499356,0.000375,120]
[424150706,1780612262000,-182.499625,0.000375,19]
[424150697,1780612262000,-160.0687629,0.00037488,2]
[424150699,1780612262000,-200.0,0.000375,15]
[424150704,1780612262000,-344.053204,0.000375,19]
[424150701,1780612262000,-82510.75482939,0.000375,2]
[424150703,1780612262000,-191.51473,0.000375,19]
[424150777,1780612263000,-630.74710949,0.00037807,11]
[424150776,1780612263000,-151.0,0.00037805,14]
[424150779,1780612263000,-520.25181531,0.00037808,11]
[424150775,1780612263000,-1000.0,0.00037803,60]
[424150768,1780612263000,-500.0,0.000378,2]
[424150770,1780612263000,-500.0,0.000378,2]
[424150771,1780612263000,-683.96,0.000378,2]
[424150769,1780612263000,-500.0,0.000378,2]
[424150764,1780612263000,-630.67,0.000378,2]
[424150772,1780612263000,-30531.09,0.000378,2]
[424150782,1780612263000,-500.0,0.00037808,11]
[424150773,1780612263000,-994.67,0.000378,60]
[424150765,1780612263000,-500.0,0.000378,2]
[424150786,1780612263000,-500.0,0.00037808,11]
[424150790,1780612263000,-579.512062,0.00037808,11]
[424150780,1780612263000,-509.05105614,0.00037808,11]
[424150783,1780612263000,-500.0,0.00037808,11]
[424150785,1780612263000,-500.0,0.00037808,11]
[424150778,1780612263000,-1335.0,0.00037808,2]
[424150781,1780612263000,-500.0,0.00037808,11]
[424150784,1780612263000,-500.0,0.00037808,11]
[424150787,1780612263000,-500.0,0.00037808,11]
[424150789,1780612263000,-500.0,0.00037808,11]
[424150792,1780612263000,-413.40417831,0.00037808,11]
[424150791,1780612263000,-500.0,0.00037808,11]
[424150788,1780612263000,-500.0,0.00037808,11]
[424150796,1780612263000,-500.0,0.00037808,11]
[424150763,1780612263000,-500.0,0.000378,2]
[424150774,1780612263000,-200.0,0.000378,10]
[424150767,1780612263000,-500.0,0.000378,2]
[424150745,1780612263000,-150.0,0.00037758,120]
[424150766,1780612263000,-500.0,0.000378,2]
[424150797,1780612263000,-500.0,0.00037808,11]
[424150732,1780612263000,-160.0687629,0.00037688,2]
[424150734,1780612263000,-150.0,0.00037694,2]
[424150733,1780612263000,-183.1423015,0.00037688,2]
[424150735,1780612263000,-199.9421324,0.000377,120]
[424150739,1780612263000,-1776.30922209,0.00037716,2]
[424150741,1780612263000,-150.0,0.00037753,2]
[424150738,1780612263000,-924.60877283,0.00037716,2]
[424150742,1780612263000,-150.0,0.00037758,120]
[424150740,1780612263000,-500.0,0.00037716,2]
[424150747,1780612263000,-1000.0,0.0003777,2]
[424150737,1780612263000,-217.15233878,0.00037716,2]
[424150743,1780612263000,-186.0,0.00037758,120]
[424150736,1780612263000,-348.0827721,0.00037716,2]
[424150744,1780612263000,-157.0,0.00037758,120]
[424150749,1780612263000,-163.0,0.0003778,60]
[424150759,1780612263000,-6975.74,0.000378,2]
[424150760,1780612263000,-176.28,0.000378,2]
[424150748,1780612263000,-163.0,0.0003778,60]
[424150750,1780612263000,-156.4477825,0.00037784,7]
[424150751,1780612263000,-9645.45091238,0.00037784,2]
[424150753,1780612263000,-160.0687629,0.00037788,2]
[424150756,1780612263000,-30000.0,0.00037799,2]
[424150752,1780612263000,-1000.0,0.00037785,60]
[424150755,1780612263000,-200.0,0.00037794,10]
[424150757,1780612263000,-295.75,0.000378,2]
[424150754,1780612263000,-183.1423015,0.00037788,2]
[424150758,1780612263000,-573.901659,0.000378,33]
[424150761,1780612263000,-5004.0,0.000378,30]
[424150762,1780612263000,-500.0,0.000378,2]
[424150798,1780612263000,-500.0,0.00037808,11]
[424150746,1780612263000,-500.0,0.0003777,2]
[424150799,1780612263000,-520.25181531,0.00037808,11]
[424150826,1780612263000,-500.0,0.00037808,11]
[424150834,1780612263000,-500.0,0.00037808,11]
[424150833,1780612263000,-500.0,0.00037808,11]
[424150836,1780612263000,-500.0,0.00037808,11]
[424150830,1780612263000,-500.0,0.00037808,11]
[424150829,1780612263000,-500.0,0.00037808,11]
[424150832,1780612263000,-500.0,0.00037808,11]
[424150835,1780612263000,-500.0,0.00037808,11]
[424150839,1780612263000,-500.0,0.00037808,11]
[424150841,1780612263000,-500.0,0.00037808,11]
[424150848,1780612263000,-500.0,0.00037808,11]
[424150840,1780612263000,-500.0,0.00037808,11]
[424150842,1780612263000,-500.0,0.00037808,11]
[424150850,1780612263000,-760.7,0.00037808,11]
[424150849,1780612263000,-500.0,0.00037808,11]
[424150846,1780612263000,-500.0,0.00037808,11]
[424150843,1780612263000,-500.0,0.00037808,11]
[424150857,1780612263000,-500.0,0.00037808,11]
[424150851,1780612263000,-500.0,0.00037808,11]
[424150845,1780612263000,-500.0,0.00037808,11]
[424150847,1780612263000,-500.0,0.00037808,11]
[424150844,1780612263000,-500.0,0.00037808,11]
[424150853,1780612263000,-500.0,0.00037808,11]
[424150852,1780612263000,-500.0,0.00037808,11]
[424150854,1780612263000,-500.0,0.00037808,11]
[424150858,1780612263000,-500.0,0.00037808,11]
[424150856,1780612263000,-500.0,0.00037808,11]
[424150855,1780612263000,-500.0,0.00037808,11]
[424150795,1780612263000,-500.0,0.00037808,11]
[424150831,1780612263000,-500.0,0.00037808,11]
[424150828,1780612263000,-500.0,0.00037808,11]
[424150859,1780612263000,-500.0,0.00037808,11]
[424150837,1780612263000,-500.0,0.00037808,11]
[424150838,1780612263000,-500.0,0.00037808,11]
[424150794,1780612263000,-500.0,0.00037808,11]
[424150811,1780612263000,-500.0,0.00037808,11]
[424150801,1780612263000,-509.05105614,0.00037808,11]
[424150800,1780612263000,-500.0,0.00037808,11]
[424150812,1780612263000,-500.0,0.00037808,11]
[424150808,1780612263000,-535.04533452,0.00037808,11]
[424150810,1780612263000,-500.0,0.00037808,11]
[424150809,1780612263000,-959.73,0.00037808,11]
[424150802,1780612263000,-500.0,0.00037808,11]
[424150803,1780612263000,-500.0,0.00037808,11]
[424150804,1780612263000,-500.0,0.00037808,11]
[424150807,1780612263000,-506.64,0.00037808,11]
[424150805,1780612263000,-500.0,0.00037808,11]
[424150793,1780612263000,-500.0,0.00037808,11]
[424150813,1780612263000,-520.25181531,0.00037808,11]
[424150806,1780612263000,-200.0,0.00037808,11]
[424150827,1780612263000,-500.0,0.00037808,11]
[424150825,1780612263000,-500.0,0.00037808,11]
[424150821,1780612263000,-500.0,0.00037808,11]
[424150824,1780612263000,-500.0,0.00037808,11]
[424150820,1780612263000,-500.0,0.00037808,11]
[424150819,1780612263000,-500.0,0.00037808,11]
[424150823,1780612263000,-500.0,0.00037808,11]
[424150817,1780612263000,-500.0,0.00037808,11]
[424150816,1780612263000,-192.43366057,0.00037808,11]
[424150814,1780612263000,-509.05105614,0.00037808,11]
[424150818,1780612263000,-500.0,0.00037808,11]
[424150815,1780612263000,-660.86,0.00037808,11]
[424150822,1780612263000,-500.0,0.00037808,11]
[424150898,1780612264000,-500.0,0.00037808,11]
[424150896,1780612264000,-500.0,0.00037808,11]
[424150900,1780612264000,-500.0,0.00037808,11]
[424150897,1780612264000,-500.0,0.00037808,11]
[424150895,1780612264000,-329.63976575,0.00037808,11]
[424150893,1780612264000,-500.0,0.00037808,11]
[424150891,1780612264000,-500.0,0.00037808,11]
[424150894,1780612264000,-500.0,0.00037808,11]
[424150899,1780612264000,-500.0,0.00037808,11]
[424150902,1780612264000,-500.0,0.00037808,11]
[424150901,1780612264000,-500.0,0.00037808,11]
[424150903,1780612264000,-500.0,0.00037808,11]
[424150905,1780612264000,-610.07,0.00037808,11]
[424150909,1780612264000,-500.0,0.00037808,11]
[424150915,1780612264000,-3164.18,0.00037808,11]
[424150914,1780612264000,-500.0,0.00037808,11]
[424150904,1780612264000,-521.5,0.00037808,11]
[424150906,1780612264000,-522.4,0.00037808,11]
[424150907,1780612264000,-500.0,0.00037808,11]
[424150910,1780612264000,-500.0,0.00037808,11]
[424150908,1780612264000,-500.0,0.00037808,11]
[424150911,1780612264000,-500.0,0.00037808,11]
[424150912,1780612264000,-755.81,0.00037808,11]
[424150917,1780612264000,-527.36,0.00037808,11]
[424150916,1780612264000,-500.0,0.00037808,11]
[424150922,1780612264000,-500.0,0.00037808,11]
[424150892,1780612264000,-500.0,0.00037808,11]
[424150929,1780612264000,-500.0,0.00037808,11]
[424150913,1780612264000,-500.0,0.00037808,11]
[424150882,1780612264000,-500.0,0.00037808,11]
[424150873,1780612264000,-500.0,0.00037808,11]
[424150884,1780612264000,-355.56,0.00037808,11]
[424150918,1780612264000,-2550.57,0.00037808,11]
[424150864,1780612264000,-500.0,0.00037808,11]
[424150861,1780612264000,-500.0,0.00037808,11]
[424150863,1780612264000,-500.0,0.00037808,11]
[424150860,1780612264000,-500.0,0.00037808,11]
[424150862,1780612264000,-703.64,0.00037808,11]
[424150866,1780612264000,-500.0,0.00037808,11]
[424150865,1780612264000,-500.0,0.00037808,11]
[424150877,1780612264000,-500.0,0.00037808,11]
[424150876,1780612264000,-500.0,0.00037808,11]
[424150867,1780612264000,-500.0,0.00037808,11]
[424150872,1780612264000,-500.0,0.00037808,11]
[424150870,1780612264000,-500.0,0.00037808,11]
[424150883,1780612264000,-500.0,0.00037808,11]
[424150875,1780612264000,-500.0,0.00037808,11]
[424150869,1780612264000,-500.0,0.00037808,11]
[424150868,1780612264000,-168.5808819,0.00037808,11]
[424150871,1780612264000,-500.0,0.00037808,11]
[424150879,1780612264000,-776.69,0.00037808,11]
[424150890,1780612264000,-340.96611273,0.00037808,11]
[424150888,1780612264000,-500.0,0.00037808,11]
[424150878,1780612264000,-500.0,0.00037808,11]
[424150889,1780612264000,-500.0,0.00037808,11]
[424150886,1780612264000,-500.0,0.00037808,11]
[424150887,1780612264000,-500.0,0.00037808,11]
[424150880,1780612264000,-500.0,0.00037808,11]
[424150881,1780612264000,-500.0,0.00037808,11]
[424150885,1780612264000,-500.0,0.00037808,11]
[424150874,1780612264000,-500.0,0.00037808,11]
[424150928,1780612264000,-841.83,0.00037808,11]
[424150920,1780612264000,-210.48,0.00037808,60]
[424150919,1780612264000,-500.0,0.00037808,11]
[424150954,1780612264000,-500.0,0.00037808,11]
[424150956,1780612264000,-500.0,0.00037808,11]
[424150960,1780612264000,-500.0,0.00037808,11]
[424150959,1780612264000,-500.0,0.00037808,11]
[424150957,1780612264000,-540.18,0.00037808,11]
[424150958,1780612264000,-500.0,0.00037808,11]
[424150963,1780612264000,-685.7,0.00037808,11]
[424150961,1780612264000,-500.0,0.00037808,11]
[424150962,1780612264000,-500.0,0.00037808,11]
[424150964,1780612264000,-599.46,0.00037808,11]
[424150974,1780612264000,-500.0,0.00037808,11]
[424150970,1780612264000,-553.82340774,0.00037808,11]
[424150973,1780612264000,-500.0,0.00037808,11]
[424150966,1780612264000,-597.61,0.00037808,11]
[424150977,1780612264000,-500.0,0.00037808,11]
[424150976,1780612264000,-578.71791613,0.00037808,11]
[424150967,1780612264000,-500.0,0.00037808,11]
[424150968,1780612264000,-500.0,0.00037808,11]
[424150969,1780612264000,-500.0,0.00037808,11]
[424150971,1780612264000,-730.05,0.00037808,11]
[424150972,1780612264000,-500.0,0.00037808,11]
[424150979,1780612264000,-500.0,0.00037808,11]
[424150978,1780612264000,-543.2,0.00037808,11]
[424150980,1780612264000,-500.0,0.00037808,11]
[424150984,1780612264000,-500.0,0.00037808,11]
[424150921,1780612264000,-500.0,0.00037808,11]
[424150982,1780612264000,-534.89,0.00037808,11]
[424150981,1780612264000,-500.0,0.00037808,11]
[424150975,1780612264000,-500.0,0.00037808,11]
[424150965,1780612264000,-500.0,0.00037808,11]
[424150983,1780612264000,-500.0,0.00037808,11]
[424150950,1780612264000,-500.59,0.00037808,11]
[424150955,1780612264000,-500.0,0.00037808,11]
[424150923,1780612264000,-500.0,0.00037808,11]
[424150924,1780612264000,-500.0,0.00037808,11]
[424150925,1780612264000,-500.0,0.00037808,11]
[424150926,1780612264000,-714.3,0.00037808,11]
[424150931,1780612264000,-601.28,0.00037808,11]
[424150941,1780612264000,-500.0,0.00037808,11]
[424150934,1780612264000,-500.0,0.00037808,11]
[424150939,1780612264000,-639.59,0.00037808,11]
[424150938,1780612264000,-670.74,0.00037808,11]